Cogmind - Beta 10 @@@ ROGUE MODE // 2020.09.19 @ 11:26:11 Player: muxecoid Result: Destroyed by S-10 Pest with Light Assault Rifle Performance ------------- Evolutions (1) 500 Regions Visited (6) 1200 Robots Destroyed (42) 210 Value Destroyed (792) 792 Prototype IDs (27) 540 Alien Tech Used (0) 0 Bonus (-271) -271 TOTAL SCORE: 2971 Bonus ------- Aligned with FarCom 300 Friendly Fire -571 Cogmind --------- Core Integrity 0/400 Matter 300/300 Energy 150/150 System Corruption 0% Temperature Cool (0) Movement Walking (260) Ox4 Location -8/Mines Parts ------- > --- POWER (1) -------- Light Neutrino Core > --- PROPULSION (2) --- Makeshift Leg Makeshift Leg > --- UTILITY (4) ------ Humpback Humpback > --- WEAPON (2) ------- AWS/EX-DEC > --- INVENTORY (44) --- Light Ion Engine Gravmag Array Makeshift Hover Unit Makeshift Hover Unit Large Storage Unit Large Storage Unit Large Storage Unit Large Storage Unit Compact Battery (300) Compact Battery (300) Experimental Sensor Array Makeshift Terrain Scan Processor Advanced Launcher Guidance Computer Advanced Core Analyzer Improved Armor Integrity Analyzer Light Armor Plating Hardened Light Armor Plating EX Chip 1 EX Chip 1 EX Chip 1 EX Chip 1 EX Chip 1 Advanced Component Analysis Suite System Purifier Grenade Launcher Grenade Launcher Deploy-a-Sentry Deploy-a-Sentry Peak State ------------ > --- POWER ------------ Light Neutrino Core > --- PROPULSION ------- Makeshift Leg Makeshift Leg > --- UTILITY ---------- Humpback Humpback > --- WEAPON ----------- AWS/EX-DEC > --- INVENTORY -------- Makeshift Leg Gravmag Array Makeshift Hover Unit Makeshift Hover Unit Large Storage Unit Large Storage Unit Large Storage Unit Large Storage Unit Compact Battery Compact Battery Experimental Sensor Array Makeshift Terrain Scan Processor Advanced Launcher Guidance Computer Advanced Core Analyzer Improved Armor Integrity Analyzer Light Armor Plating Hardened Light Armor Plating EX Chip 1 EX Chip 1 EX Chip 1 EX Chip 1 EX Chip 1 Advanced Component Analysis Suite System Purifier Grenade Launcher Grenade Launcher Deploy-a-Sentry Deploy-a-Sentry [Rating: 50] Favorites ----------- Power Light Ion Engine Engine Light Ion Engine Power Core Light Neutrino Core Propulsion Light Treads Treads Light Treads Leg Makeshift Leg Wheel Wheel Utility Large Storage Unit Device System Purifier Storage Large Storage Unit Protection Power Shielding Weapon Light Assault Rifle Energy Gun AWS/EX-DEC Ballistic Gun Light Assault Rifle Launcher Grenade Launcher Build | -11 -10 -10 -9 -9 -9 -8 ------- Run | Scr Mat Min Mat Min Exi Min Slots Evolved 2 | . . . 2 . . . Power . | . . . . . . . Propulsion . | . . . . . . . Utility 2 | . . . 2 . . . Weapon . | . . . . . . . Parts Attached 53 | 6 5 2 8 7 14 11 Power 6 | 1 1 1 . . 2 1 Engine 4 | 1 1 1 . . 1 . Core 2 | . . . . . 1 1 Reactor . | . . . . . . . Propulsion 10 | 2 1 . . 2 . 5 Treads 4 | . . . . 2 . 2 Leg 3 | . . . . . . 3 Wheel 3 | 2 1 . . . . . Hover . | . . . . . . . Flight . | . . . . . . . Utility 19 | 1 2 . 5 4 7 . Device 3 | . . . . 1 2 . Storage 14 | 1 1 . 5 3 4 . Processor . | . . . . . . . Hackware . | . . . . . . . Protection 2 | . 1 . . . 1 . Artifact . | . . . . . . . Weapon 18 | 2 1 1 3 1 5 5 Energy Gun 8 | 1 1 1 2 1 1 1 Energy Cannon . | . . . . . . . Ballistic Gun 9 | 1 . . 1 . 3 4 Ballistic Cannon . | . . . . . . . Launcher 1 | . . . . . 1 . Special Weapon . | . . . . . . . Impact Weapon . | . . . . . . . Slashing Weapon . | . . . . . . . Piercing Weapon . | . . . . . . . Special Melee Weapon . | . . . . . . . Unidentified Prototypes 4 | . . . . 1 3 . Parts Lost 19 | . 3 . 3 1 4 8 Power 3 | . 1 . . . 1 1 Propulsion 5 | . 1 . . . . 4 Utility 1 | . . . . . 1 . Weapon 10 | . 1 . 3 1 2 3 Highest Loss Streak 5 | . 1 . 2 1 4 5 Average Slot Usage (%) 87 | . 99 100 100 100 83 69 Engine 9 | . 14 14 11 11 6 7 Core 2 | . . . . . 3 2 Treads 13 | . . . . 18 22 1 Leg 3 | . . . . . . 19 Wheel 6 | . 28 28 22 3 . . Device 1 | . . . . . 4 . Storage 28 | . 14 14 33 42 28 22 Protection 4 | . 13 14 11 1 2 . Energy Gun 9 | . 14 14 11 11 8 5 Ballistic Gun 9 | . 14 14 11 11 6 10 Naked Turns . | . . . . . . . Heaviest Build 178 | 10 23 24 56 71 178 178 Greatest Support 40 | 26 26 26 26 40 40 40 Greatest Overweight (x) 8 | . . . 2 2 4 8 Average Overweight (x) 1 | . . . 1 1 2 4 Largest Inventory Capacity 44 | 6 10 10 22 28 44 44 Average Capacity 26 | 5 6 10 18 27 28 44 Most Carried 41 | 4 10 10 21 21 39 41 Average Carried 19 | 1 5 9 12 20 20 31 Final Capacity 44 | 6 10 10 22 28 44 44 Final Carried 39 | 4 9 10 21 21 39 29 Class Distribution -------------------- 59% | Hauler-Mutant 40% | Mutant Dominant Class ---------------- Mutant | -10/Materials Mutant | -10/Mines Mutant | -9/Materials Hauler-Mutant | -9/Mines Hauler-Mutant | -9/Exiles Hauler-Mutant | -8/Mines Resources | -11 -10 -10 -9 -9 -9 -8 ----------- Run | Scr Mat Min Mat Min Exi Min Matter Collected 1244 | 254 110 53 195 181 318 133 Remotely . | . . . . . . . Salvage Created 1193 | . 246 44 218 94 241 350 Parts 94 | . 16 6 19 2 43 8 Haulers Intercepted 2 | . 1 . 1 . . . Recyclers Shooed . | . . . . . . . Parts Field Recycled . | . . . . . . . Retrieved Matter . | . . . . . . . Parts Self-Destructed . | . . . . . . . Prevented . | . . . . . . . Kills | -11 -10 -10 -9 -9 -9 -8 ------- Run | Scr Mat Min Mat Min Exi Min Combat Hostiles Destroyed 24 | . 7 3 3 2 3 6 Guns 18 | . 7 3 3 2 . 3 AOE 4 | . . . . . 3 1 Classes Destroyed 11 | . 4 . 2 . 3 2 Tunneler 1 | . . . . . . 1 Hauler 2 | . 1 . 1 . . . Operator 1 | . 1 . . . . . Turret 1 | . . . . . 1 . Watcher 1 | . . . 1 . . . Swarmer 6 | . 3 3 . . . . Grunt 11 | . 4 . . 2 . 5 Brawler 1 | . . . . . . 1 Sentry 3 | . . . 3 . . . Zionite 6 | . . . . . 6 . Assembled 6 | . . . . . 6 . Best Kill Streak 5 | . 5 3 2 2 3 4 Combat Bots Only 5 | . 5 3 2 2 3 3 Max Kills in Single Turn 3 | . 1 2 1 1 3 1 Gunslinging . | . . . . . . . Exploded 2 | . . . . . 2 1 Melee . | . . . . . . . Uniques/NPCs Destroyed 2 | . . . . . 2 . 8R-AWN (-9/Exiles) EX-BIN (-9/Exiles) EX-HEX (-9/Exiles) EX-DEC (-9/Exiles) 12-ASH (-8/Mines) Combat | -11 -10 -10 -9 -9 -9 -8 -------- Run | Scr Mat Min Mat Min Exi Min Damage Taken 3219 | . 343 113 253 143 687 1680 Core 539 | . 73 62 29 16 104 255 Absorbed by Shields . | . . . . . . . Core Remaining (%) 73 | 100 . 46 . . . . Volleys Fired 124 | . 32 6 13 11 43 19 Largest 2 | . 2 2 2 2 2 2 Hottest 85 | . 60 70 85 85 46 43 Shots Fired 272 | . 61 12 26 22 90 61 Gun 269 | . 61 12 26 22 87 61 Cannon . | . . . . . . . Launcher 3 | . . . . . 3 . Special . | . . . . . . . Kinetic 180 | . 32 6 13 11 80 38 Thermal 59 | . 29 6 13 11 . . Explosive 3 | . . . . . 3 . Electromagnetic 30 | . . . . . 7 23 Robot Hit Streak 15 | . 11 2 13 6 15 11 Robot Miss Streak 5 | . 3 2 1 1 3 5 Penetration Max . | . . . . . . . Secondary Targets 2 | . 1 . . . 1 . Max Gunslinging Chain 1 | . 1 . . . 1 . Autonomous 30 | . . . . . 7 23 Shots Hit Robots 196 | . 41 6 21 18 61 49 Core Hits 96 | . 16 3 8 6 43 20 Critical Hits 2 | . . . . . 2 . Critical Kills . | . . . . . . . Critical Parts Destroyed 2 | . . . . . 2 . Melee Attacks . | . . . . . . . Impact . | . . . . . . . Slashing . | . . . . . . . Piercing . | . . . . . . . Sneak Attacks . | . . . . . . . Combat Hostiles . | . . . . . . . Follow-up Attacks . | . . . . . . . Damage Inflicted 3189 | . 495 89 281 197 1150 977 Guns 2761 | . 495 89 281 197 757 942 Cannons . | . . . . . . . Explosions 428 | . . . . . 393 35 Melee . | . . . . . . . Ramming . | . . . . . . . Kinetic 1294 | . 216 53 92 77 559 297 Thermal 659 | . 279 36 189 120 . 35 Explosive 393 | . . . . . 393 . Electromagnetic 843 | . . . . . 198 645 Impact . | . . . . . . . Slashing . | . . . . . . . Piercing . | . . . . . . . Highest Corruption 5 | . . . . . 5 . Average Corruption 3 | . . . . . 3 . Corruption Purged 5 | . . . . . 5 . Effects 6 | . . . . . 6 . Message Errors 2 | . . . . . 2 . Heat Flow Errors 1 | . . . . . 1 . Energy Discharges 3 | . . . . . 3 . Overload Shots . | . . . . . . . Overflow Damage 23 | . . . . . 23 . Projectiles . | . . . . . . . Explosions 23 | . . . . . 23 . Melee . | . . . . . . . Knockbacks . | . . . . . . . Impact . | . . . . . . . Kinetic . | . . . . . . . Secondary . | . . . . . . . Self-Inflicted Damage . | . . . . . . . Shots . | . . . . . . . Rammed . | . . . . . . . Targets Rammed . | . . . . . . . Kicked . | . . . . . . . Crushed . | . . . . . . . Highest Temperature 170 | . 60 54 149 64 170 16 Average Temperature 41 | . 26 28 57 44 87 9 Received Heat Transfer 528 | . 120 . 81 84 . 243 Siege Activations . | . . . . . . . Robots Corrupted 2 | . . . . . . 2 Combat Hostiles 2 | . . . . . . 2 Parts Fried 4 | . . . . . . 4 Impact Corruptions . | . . . . . . . Robots Melted . | . . . . . . . Combat Hostiles . | . . . . . . . Parts Melted 2 | . 1 . 1 . . . Heat Transferred 1529 | . 625 111 481 262 . 50 Parts Sabotaged . | . . . . . . . Parts Stolen . | . . . . . . . Parts Stripped . | . . . . . . . Power Chain Reactions 1 | . . . . . . 1 Missiles Intercepted . | . . . . . . . Alert | -11 -10 -10 -9 -9 -9 -8 ------- Run | Scr Mat Min Mat Min Exi Min Peak Influence 244 | . 244 161 166 104 . 130 Initial 91 | . . 91 62 64 . . Average 74 | . 138 128 95 50 . 42 Maximum Alert Level 1 | . 1 . . . . . Low Security (%) 94 | 100 60 100 100 100 . 100 Level 1 5 | . 39 . . . . . Level 2 . | . . . . . . . Level 3 . | . . . . . . . Level 4 . | . . . . . . . Level 5 . | . . . . . . . High Security . | . . . . . . . Max Security . | . . . . . . . Squads Dispatched 4 | . 4 . . . . . Investigation 1 | . 1 . . . . . Extermination . | . . . . . . . Reinforcement 3 | . 3 . . . . . Assault . | . . . . . . . Garrison . | . . . . . . . Intercept . | . . . . . . . Construction Impeded . | . . . . . . . Haulers Reinforced . | . . . . . . . Stealth | -11 -10 -10 -9 -9 -9 -8 --------- Run | Scr Mat Min Mat Min Exi Min Distress Signals 3 | . 2 . 1 . . . Communications Jammed . | . . . . . . . Distress Signals . | . . . . . . . Times Spotted 70 | . 17 3 5 2 34 9 Peak Tracking Total 7 | . 5 3 2 2 7 3 Tactical Retreats 14 | . 1 . . . 13 . Traps | -11 -10 -10 -9 -9 -9 -8 ------- Run | Scr Mat Min Mat Min Exi Min Traps Triggered . | . . . . . . . Indirectly . | . . . . . . . Trap Hack Attempts . | . . . . . . . Triggered . | . . . . . . . Disarmed . | . . . . . . . Reprogrammed . | . . . . . . . Reused . | . . . . . . . Traps Extracted . | . . . . . . . Installed . | . . . . . . . Triggered . | . . . . . . . Machines | -11 -10 -10 -9 -9 -9 -8 ---------- Run | Scr Mat Min Mat Min Exi Min Machines Disabled 5 | . . . . . 5 . Max in Single Turn 1 | . . . . . 1 . Machines Sabotaged . | . . . . . . . Garrisons Compromised . | . . . . . . . Overloaded Fab Kills . | . . . . . . . Fab Network Shutdowns . | . . . . . . . Hacking | -11 -10 -10 -9 -9 -9 -8 --------- Run | Scr Mat Min Mat Min Exi Min Machines Accessed 7 | . 3 . 2 1 1 . Terminals 4 | . 3 . 1 . . . Fabricators . | . . . . . . . Repair Stations . | . . . . . . . Recycling Units . | . . . . . . . Scanalyzers 1 | . . . 1 . . . Garrison Access . | . . . . . . . Total Hacks 13 | . 8 . 3 1 1 . Successful 9 | . 5 . 2 1 1 . Failed 4 | . 3 . 1 . . . Catastrophic . | . . . . . . . Database Lockouts . | . . . . . . . Manual 8 | . 6 . 1 . 1 . Terminals 9 | . 8 . 1 . . . Fabricators . | . . . . . . . Repair Stations . | . . . . . . . Recycling Units . | . . . . . . . Scanalyzers 2 | . . . 2 . . . Garrison Access . | . . . . . . . Terminal Hacks 4 | . 2 . . 1 1 . Robot Analysis 1 | . 1 . . . . . Open Door 1 | . . . . 1 . . Locate Traps 1 | . 1 . . . . . EX-Prototype ID Bank 1 | . . . . . 1 . Fabricator Hacks . | . . . . . . . Repair Station Hacks . | . . . . . . . Recycling Unit Hacks . | . . . . . . . Scanalyzer 2 | . . . 2 . . . Insert Component 1 | . . . 1 . . . Analyze 1 | . . . 1 . . . Garrison Access Hacks . | . . . . . . . Unauthorized Hacks 3 | . 3 . . . . . Terminals 3 | . 3 . . . . . Track 1 | . 1 . . . . . Assimilate 1 | . 1 . . . . . Botnet 1 | . 1 . . . . . Fabricators . | . . . . . . . Repair Stations . | . . . . . . . Recycling Units . | . . . . . . . Scanalyzers . | . . . . . . . Garrison Access . | . . . . . . . Data Cores Recovered . | . . . . . . . Used . | . . . . . . . Hacking Detections 5 | . 3 . 2 . . . Full Trace Events 1 | . 1 . . . . . Feedback Events . | . . . . . . . Feedback Blocked . | . . . . . . . Robot Schematics Acquired . | . . . . . . . Robots Built . | . . . . . . . Matter . | . . . . . . . Time . | . . . . . . . Total Robot Build Rating . | . . . . . . . Part Schematics Acquired 1 | . . . 1 . . . Parts Built . | . . . . . . . Matter . | . . . . . . . Time . | . . . . . . . Total Part Build Rating . | . . . . . . . Parts Repaired . | . . . . . . . Time . | . . . . . . . Parts Recycled . | . . . . . . . Recycled Matter . | . . . . . . . Retrieved Matter . | . . . . . . . Retrieved Components . | . . . . . . . Parts Scanalyzed 1 | . . . 1 . . . Part Schematics Acquired 1 | . . . 1 . . . Parts Damaged . | . . . . . . . Bothacking | -11 -10 -10 -9 -9 -9 -8 ------------ Run | Scr Mat Min Mat Min Exi Min Used RIF Installer . | . . . . . . . Robots Hacked . | . . . . . . . Non-combat . | . . . . . . . Combat . | . . . . . . . Robot Hacks Applied . | . . . . . . . Relay Couplers Released . | . . . . . . . Robots Rewired . | . . . . . . . Allies Hacked . | . . . . . . . Hacks Repelled . | . . . . . . . Allies | -11 -10 -10 -9 -9 -9 -8 -------- Run | Scr Mat Min Mat Min Exi Min Total Allies 1 | . . . . 1 . . Largest Group 1 | . . . . 1 1 . Highest-Rated Group 31 | . . . . 31 31 . Highest-Rated Ally 31 | . . . . 31 31 . Total Orders . | . . . . . . . Ally Attacks 29 | . . . . . 14 15 Total Damage 1539 | . . . . . 710 829 Kills 7 | . . . . . 3 4 Allies Corrupted . | . . . . . . . Allies Melted . | . . . . . . . Turrets Deployed 2 | . . . . . 1 1 Intel | -11 -10 -10 -9 -9 -9 -8 ------- Run | Scr Mat Min Mat Min Exi Min Robot Analysis Total 1 | . 1 . . . . . Derelict Logs Recovered 4 | . . 1 . 3 . . Drone Launches 16 | . . . . . 16 . Drone Recoveries . | . . . . . . . Exploration | -11 -10 -10 -9 -9 -9 -8 ------------- Run | Scr Mat Min Mat Min Exi Min Turns Passed 3671 | 40 298 182 318 630 1623 580 Spaces Moved 1776 | 31 199 179 249 287 635 196 Core 1 | 1 . . . . . . Treads 890 | . . . . 253 635 2 Legs 194 | . . . . . . 194 Wheels 691 | 30 199 179 249 34 . . Hover . | . . . . . . . Flight . | . . . . . . . Fastest Speed 50 | 50 90 90 100 110 180 260 Average Speed 162 | 88 90 90 100 171 200 260 Slowest Speed 320 | 90 90 90 110 180 240 320 Overloaded Moves . | . . . . . . . Propulsion Burnouts . | . . . . . . . Robots Hopped . | . . . . . . . Cave-ins Triggered . | . . . . . . . Exploration Rate (%) 43 | 3 59 36 21 50 89 44 Regions Visited 6 Branch Regions 4 Pre-discovered Areas 2 | . . 2 . . . . Known Exits Taken . | . . . . . . . Unknown Exits Taken 6 | 1 1 1 1 1 1 . Scrap Searched 3 | . . 2 . 1 . . Spaces Dug . | . . . . . . . Terrain Destroyed 8 | . . . . . 6 2 Melee . | . . . . . . . Projectile . | . . . . . . . AOE 8 | . . . . . 6 2 Terrain Rammed . | . . . . . . . Walls Destroyed . | . . . . . . . Machines Disabled . | . . . . . . . Actions | -11 -10 -10 -9 -9 -9 -8 --------- Run | Scr Mat Min Mat Min Exi Min Total 2335 | 40 256 187 291 409 917 235 Wait 282 | . 12 . 6 86 174 4 Move 1770 | 30 198 178 248 286 634 196 Hop . | . . . . . . . Pick Up 68 | 4 8 . 15 8 32 1 Fast Attach 16 | 6 1 . . 2 7 . Attach 29 | . 3 . 5 5 5 11 Detach 2 | . . . . 1 . 1 Swap 8 | . 1 2 3 . 2 . Drop 36 | . 1 1 1 10 20 3 Fire 124 | . 32 6 13 11 43 19 Melee . | . . . . . . . Ram . | . . . . . . . Kick . | . . . . . . . Crush . | . . . . . . . Escape Stasis . | . . . . . . . Rewire . | . . . . . . . Trap . | . . . . . . . Miscellaneous . | . . . . . . . Route ------- -11/Scrapyard -10/Materials (discovered 3 exits: *Mat / [*Min x2]) -10/Mines -9/Materials -9/Mines (discovered 2 exits: [*Mat] / *Exi) -9/Exiles -8/Mines History --------- Turn | Location | Event 23 | -11/Scrapyard | Discovered new exit (range 15) 41 | -11/Scrapyard | Entered Materials 159 | -10/Materials | Discovered new exit (range 16) 262 | -10/Materials | Discovered new exit (range 16) 296 | -10/Materials | Discovered new exit (range 7) 324 | -10/Materials | Build established: Mutant 339 | -10/Materials | Entered Mines 343 | -10/Mines | Learned location of Storage (-8) 355 | -10/Mines | Met a Derelict bent on vengeance 422 | -10/Mines | Core integrity fell below 50% 437 | -10/Mines | Learned location of Zion (-6) 460 | -10/Mines | Discovered new exit (range 4) 521 | -10/Mines | Entered Materials 521 | -9/Materials | Evolved 2 slots: Utility x2 777 | -9/Materials | Discovered new exit (range 12) 839 | -9/Materials | Entered Mines 843 | -9/Mines | Found the Drone Emporium 906 | -9/Mines | Found Prototype Device 1116 | -9/Mines | Build established: Hauler-Mutant 1232 | -9/Mines | Identified Decoy Drone Bay 1338 | -9/Mines | Found a damaged Exp. Sensor Array with a note attached 1342 | -9/Mines | Found Prototype Device 1353 | -9/Mines | YI-UF0 nonchalantly dropped a Grenade Launcher on the ground 1370 | -9/Mines | Received a Mining Laser from a helpful Derelict 1411 | -9/Mines | Learned Materials interactive machine intel 1438 | -9/Mines | Discovered new exit (range 6) 1460 | -9/Mines | Deemed a non-threat by the Exiles lab entrance 1461 | -9/Mines | Discovered new exit (range 5) 1469 | -9/Mines | Entered Exiles 1469 | -9/Exiles | Accompanied by 1 ally 1520 | -9/Exiles | Met 8R-AWN 1543 | -9/Exiles | Met EX-HEX 1597 | -9/Exiles | Met EX-BIN 1617 | -9/Exiles | Met EX-DEC 1660 | -9/Exiles | Aligned with FarCom system 1662 | -9/Exiles | Given EX-Vault access code 1703 | -9/Exiles | Opened EX-Vault 1718 | -9/Exiles | Found Deploy-a-Sentry 1721 | -9/Exiles | Found Deploy-a-Sentry 1723 | -9/Exiles | Found Deploy-a-Sentry 1766 | -9/Exiles | Warned to stay clear of 0b10 Research branches 1861 | -9/Exiles | DAS Turret deployed 1863 | -9/Exiles | Attacked by the Exiles 1890 | -9/Exiles | Allies destroyed 8R-AWN 1895 | -9/Exiles | Discovered new exit (range 79) 2061 | -9/Exiles | Destroyed EX-BIN 2087 | -9/Exiles | Destroyed EX-HEX 2120 | -9/Exiles | Destroyed EX-DEC 2133 | -9/Exiles | Found Prototype Device 2133 | -9/Exiles | Identified System Purifier 2147 | -9/Exiles | Lost 4 parts (1p1u2w) 2163 | -9/Exiles | Found Prototype Energy Gun 2163 | -9/Exiles | Identified AWS/EX-DEC 2170 | -9/Exiles | Found Deploy-a-Sentry 2184 | -9/Exiles | Build established: Mutant 2788 | -9/Exiles | Build established: Hauler-Mutant 3092 | -9/Exiles | Left Exiles lab with Deploy-a-Sentry 3092 | -9/Exiles | Entered Mines 3093 | -8/Mines | 12-ASH came to Exiles' defense 3105 | -8/Mines | Core integrity fell below 50% 3130 | -8/Mines | Core integrity fell below 20% 3134 | -8/Mines | DAS Turret deployed 3151 | -8/Mines | Allies destroyed 12-ASH 3160 | -8/Mines | Lost 5 parts (3n2w) 3672 | -8/Mines | Destroyed by S-10 Pest with Light Assault Rifle Last Messages --------------- 03394_ Acquired 13 matter. 03394_ R-06 Scavenger collects Carbon-fiber Leg. 03399_ R-06 Scavenger collects Lgt. Assault Rifle. 03515_ Mak. Power Source destroyed. 03521_ T-07 Excavator destroyed. 03526_ Chain reaction triggered in Rnf. Ion Engine. 03526_ Hammer fried. 03526_ B-36 Bruiser destroyed. 03527_ Mak. Leg destroyed. 03541_ G-47 Trooper destroyed. 03544_ Imp. Heat Sink fried. 03544_ G-47 Trooper destroyed. 03549_ Acquired 15 matter. 03555_ Acquired Lgt. Ion Engine. 03557_ U-05 Engineer lays Concrete. 03562_ U-05 Engineer builds a Wall. 03566_ U-05 Engineer lays Concrete. 03574_ U-05 Engineer builds a Wall. 03579_ U-05 Engineer lays Concrete. 03621_ K-01 Serf collects debris. Map ----- +----------------------------------------------------+ | ?## ##?????????????????????????????????? | | ## ##????????###??????????????????????? | | # ### ####????# ##?????????????????????? | | # %#####?## ##### #?????????????????????? | | ## ##?????## #?????????????????????? | | ## ###?????## #?????????????????????? | | # % ##?????## ##?????????????????????? | | % #??????# ##??????????????????????? | | [ #?????## ####???????????????????????? | | #?????# ##??????????????????????????? | | #????# ##??????????????????????????? | | #???## #??????????????????????????? | | #??## #??????????????????????????? | | ##??# #??????????????????????????? | | ##???# #??????????????????????????? | | #????## #??????????????????????????? | | #?????## #??????????????????????????? | | #??????## #??????????????????????????? | | # ##???????### ##?????????????????????????? | | ## ##??????????## ##????????????????????????? | | ??####????????????## #?????????????#??????????? | | ?????????########### u#?????????? ?????????? | | ?????????# ##?????? ssk ??????????? | | ####?????# ##########r ##### #????????????? | | # ##????# #????????## r #????????????? | | ###### ####??????# @ #????????????? | | [[ #?????# ##### #????????????? | | *! % #????# #????????????????????? | | ###### #???# #????????????????????? | | # ##????? #??# #????????????????????? | | # ####?????? t ##????????????????????? | | # ######????? ##?????????????????????? | | # #????? ##### ##??????????????????????? | | ###### #????? ##???#####???????????????????????? | | ?????# #????? ##????????????????????????????????? | | ?????# #????? ##?????????????????????????????????? | | ?????# #?????????????????????????????????????????? | | ?????# #?????????????????????????????????????????? | | ?????# #?????????????????????????????????????????? | | ?????# #?????????????????????????????????????????? | | ####?# #?????????????????????????????????????????? | | # ### ###???????????????????????????????????????? | | ## #???????????????????????????????????????? | | ##???????????????????????????????????????? | | # ###????????????????????????????????????????? | | # #####??????????????????????????????????????????? | | # ####???????????????????????????????????????????? | | # #??####?????????????????????????????????????? | | #### #?## ##????????????????????????????????????? | | ???# #?# ##???????###?????????????????????????? | +----------------------------------------------------+ Best States ------------- Heat Dissipation 28 Energy Generation 19 Energy Capacity 170 Matter Stores 300 Matter Capacity 300 Sight Range 16 Terrain Scan Density 10 Armor Coverage 150 Power Shielding 33 Evasion (%) 42 Recoil Reduction 2 Item Schematics ----------------- Lrg. Storage Unit | -9/Materials | Scanalyzed Robot Schematics ------------------ None Fabricated ------------ Nothing Alien Tech Used ----------------- None Achievements -------------- None Challenges ------------ None Game ------ Seed WarpElectronRegenerator Manual? 0 Play Time 00:33:07 Cumulative 228.5 hours Start 2020.09.19 @ 10:45:28 End 2020.09.19 @ 11:26:11 Sessions 3 Manual Loads 0 Difficulty Rogue Special Mode None Game No. 126 Rogue 126 Adventurer 0 Explorer 0 Win Type - Total 9 Types 7/0/1/1/0/0/0/0/0 Lore% 64 Gallery% 81 Achievement% 64 Wizard Run 0 Options --------- ASCII 0 Keyboard 0 Movement Mouse Keybinds 0 Fullscreen 1 Font 24/Smallcaps Map View 76x50 Tactical HUD 1 Map Filters NONE Filters NONE Steam 1 RUN: 9fd2dfc1-3404-4d3b-b044-e560b32f46a6